fUSD/lending_fUSD_20251210
["ID","MTS","AMOUNT","RATE_DAILY","PERIOD"]
[398091298,1765363893082,-528.5,0.00016164,2]
[398091299,1765363893091,-500.0,0.00016164,2]
[398091300,1765363893100,-500.0,0.00016164,2]
[398091301,1765363893109,-500.0,0.00016164,2]
[398091302,1765363893119,-500.0,0.00016164,2]
[398091303,1765363893128,-500.0,0.00016164,2]
[398091304,1765363893137,-582.05,0.00016164,2]
[398091305,1765363893146,-500.0,0.00016164,2]
[398091306,1765363893157,-500.0,0.00016164,2]
[398091307,1765363893166,-1023.47,0.00016164,2]
[398091308,1765363893177,-500.0,0.00016164,2]
[398091309,1765363893188,-646.06246437,0.00016164,2]
[398091310,1765363893197,-620.61352504,0.00016164,2]
[398091311,1765363893207,-2989.18,0.00016164,2]
[398091312,1765363893216,-500.0,0.00016164,2]
[398091313,1765363893226,-500.0,0.00016164,2]
[398091314,1765363893236,-555.46,0.00016164,2]
[398091315,1765363893246,-500.0,0.00016164,2]
[398091316,1765363893255,-500.0,0.00016164,2]
[398091317,1765363893264,-1304.2,0.00016164,2]
[398091318,1765363893274,-729.87,0.00016164,2]
[398091319,1765363893285,-2869.58,0.00016164,2]
[398091320,1765363893294,-500.0,0.00016164,2]
[398091321,1765363893303,-500.0,0.00016164,2]
[398091322,1765363893313,-500.0,0.00016164,2]
[398091323,1765363893323,-658.56,0.00016164,2]
[398091324,1765363893332,-500.0,0.00016164,2]
[398091325,1765363893342,-501.94,0.00016164,2]
[398091326,1765363893352,-500.0,0.00016164,2]
[398091327,1765363893361,-500.0,0.00016164,2]
[398091328,1765363893370,-500.0,0.00016164,2]
[398091329,1765363893380,-500.0,0.00016164,2]
[398091330,1765363893390,-500.0,0.00016164,2]
[398091331,1765363893399,-548.02,0.00016164,2]
[398091332,1765363893409,-500.0,0.00016164,2]
[398091333,1765363893420,-500.0,0.00016164,2]
[398091334,1765363893430,-500.0,0.00016164,2]
[398091335,1765363893439,-500.0,0.00016164,2]
[398091336,1765363893449,-500.0,0.00016164,2]
[398091337,1765363893458,-500.0,0.00016164,2]
[398091338,1765363893468,-970.77,0.00016164,2]
[398091339,1765363893478,-500.0,0.00016164,2]
[398091340,1765363893487,-1025.9,0.00016164,2]
[398091341,1765363893497,-500.0,0.00016164,2]
[398091342,1765363893507,-540.25,0.00016164,2]
[398091343,1765363893516,-555.46,0.00016164,2]
[398091344,1765363893525,-500.0,0.00016164,2]
[398091345,1765363893535,-832.02,0.00016164,2]
[398091346,1765363893544,-500.0,0.00016164,2]
[398091347,1765363893554,-635.2,0.00016164,2]
[398091348,1765363893564,-500.0,0.00016164,2]
[398091349,1765363893576,-500.0,0.00016164,2]
[398091350,1765363893588,-515.11,0.00016164,2]
[398091351,1765363893599,-500.0,0.00016164,2]
[398091352,1765363893609,-557.58,0.00016164,2]
[398091353,1765363893618,-695.06,0.00016164,2]
[398091354,1765363893628,-520.93,0.00016164,2]
[398091355,1765363893640,-500.0,0.00016164,2]
[398091356,1765363893652,-500.0,0.00016164,2]
[398091357,1765363893663,-762.87,0.00016164,2]
[398091358,1765363893674,-2138.7,0.00016164,2]
[398091359,1765363893687,-765.27,0.00016164,2]
[398091360,1765363893699,-1364.77,0.00016164,2]
[398091361,1765363893711,-572.05,0.00016164,2]
[398091362,1765363893721,-500.0,0.00016164,2]
[398091363,1765363893732,-500.0,0.00016164,2]
[398091364,1765363893742,-516.6,0.00016164,2]
[398091365,1765363893752,-500.0,0.00016164,2]
[398091366,1765363893764,-951.41,0.00016164,2]
[398091367,1765363893775,-679.67,0.00016164,2]
[398091368,1765363893786,-500.0,0.00016164,2]
[398091369,1765363893797,-718.05,0.00016164,2]
[398091370,1765363893807,-729.92,0.00016164,2]
[398091371,1765363893817,-500.0,0.00016164,2]
[398091372,1765363893829,-531.49,0.00016164,2]
[398091373,1765363893840,-500.0,0.00016164,2]
[398091374,1765363893852,-500.0,0.00016164,2]
[398091375,1765363893865,-503.74,0.00016164,2]
[398091376,1765363893876,-641.54,0.00016164,2]
[398091377,1765363893889,-1067.97,0.00016164,2]
[398091378,1765363893900,-500.0,0.00016164,2]
[398091379,1765363893911,-500.0,0.00016164,2]
[398091380,1765363893922,-539.19,0.00016164,2]
[398091381,1765363893934,-2594.14,0.00016164,2]
[398091382,1765363893945,-500.0,0.00016164,2]
[398091383,1765363893955,-500.0,0.00016164,2]
[398091384,1765363893967,-500.0,0.00016164,2]
[398091385,1765363893986,-500.0,0.00016164,2]
[398091386,1765363893998,-545.18,0.00016164,2]
[398091387,1765363894009,-1000.0,0.00016164,2]
[398091388,1765363894022,-500.0,0.00016164,2]
[398091389,1765363894033,-1366.9,0.00016164,2]
[398091390,1765363894046,-780.91,0.00016164,2]
[398091391,1765363894056,-904.37,0.00016164,2]
[398091392,1765363894066,-500.0,0.00016164,2]
[398091393,1765363894078,-634.90469775,0.00016164,2]
[398091394,1765363894088,-500.0,0.00016164,2]
[398091395,1765363894100,-1011.3,0.00016164,2]
[398091396,1765363894112,-1977.85,0.00016164,2]
[398091397,1765363894123,-500.0,0.00016164,2]
[398091398,1765363894134,-500.0,0.00016164,2]
[398091399,1765363894145,-674.04,0.00016164,2]
[398091400,1765363894158,-530.92,0.00016164,2]
[398091401,1765363894168,-611.22272173,0.00016164,2]
[398091402,1765363894179,-515.73,0.00016164,2]
[398091403,1765363894190,-500.0,0.00016164,2]
[398091404,1765363894201,-500.0,0.00016164,2]
[398091405,1765363894212,-500.0,0.00016164,2]
[398091406,1765363894225,-618.95,0.00016164,2]
[398091407,1765363894236,-746.65,0.00016164,2]
[398091408,1765363894246,-500.0,0.00016164,2]
[398091409,1765363894256,-500.0,0.00016164,2]
[398091410,1765363894266,-500.0,0.00016164,2]
[398091411,1765363894278,-562.39,0.00016164,2]
[398091412,1765363894289,-514.85,0.00016164,2]
[398091413,1765363894299,-500.0,0.00016164,2]
[398091414,1765363894310,-594.84,0.00016164,2]
[398091415,1765363894321,-2704.59,0.00016164,2]
[398091416,1765363894330,-1311.95,0.00016164,2]
[398091417,1765363894340,-672.92,0.00016164,2]
[398091418,1765363894351,-500.0,0.00016164,2]
[398091419,1765363894360,-500.0,0.00016164,2]
[398091420,1765363894371,-500.0,0.00016164,2]
[398091421,1765363894380,-500.0,0.00016164,2]
[398091422,1765363894390,-536.09,0.00016164,2]
[398091423,1765363894400,-636.09,0.00016164,2]
[398091424,1765363894410,-500.0,0.00016164,2]
[398091425,1765363894421,-518.62,0.00016164,2]
[398091426,1765363894431,-470.50378271,0.00016164,2]
[398091427,1765363894440,-500.0,0.00016164,2]
[398091428,1765363894449,-2690.76,0.00016164,2]
[398091429,1765363894460,-500.0,0.00016164,2]
[398091430,1765363894470,-539.25,0.00016164,2]
[398091431,1765363894481,-500.0,0.00016164,2]
[398091432,1765363894490,-669.46,0.00016164,2]
[398091433,1765363894502,-500.0,0.00016164,2]
[398091434,1765363894512,-500.0,0.00016164,2]
[398091435,1765363894521,-583.28520528,0.00016164,2]
[398091436,1765363894531,-500.0,0.00016164,2]
[398091437,1765363894541,-500.0,0.00016164,2]
[398091438,1765363894551,-500.0,0.00016164,2]
[398091439,1765363894561,-500.0,0.00016164,2]
[398091440,1765363894571,-522.23,0.00016164,2]
[398091441,1765363894581,-633.04,0.00016164,2]
[398091442,1765363894591,-854.51,0.00016164,2]
[398091443,1765363894601,-500.0,0.00016164,2]
[398091444,1765363894611,-500.0,0.00016164,2]
[398091445,1765363894621,-549.33847802,0.000162,2]
[398091446,1765363894632,-1097.0,0.00016207,2]
[398091447,1765363894642,-736.0,0.00016278,2]
[398091448,1765363894651,-1301.0,0.00016286,2]
[398091449,1765363894661,-1162.0,0.00016289,2]
[398091450,1765363894670,-150.0,0.000163,2]
[398091451,1765363894681,-976.27457,0.0001632,2]
[398091452,1765363894690,-1144.6786613,0.0001636,2]
[398091453,1765363894700,-28508.6476943,0.0001636,2]
[398091454,1765363894709,-5802.0988344,0.0001636,2]
[398091455,1765363894718,-2238.2468156,0.0001636,2]
[398091456,1765363894728,-195.1772435,0.00016417,2]
[398091457,1765363894738,-1162.0,0.00016426,2]
[398091458,1765363894748,-154.47662379,0.00016438,2]
[398091459,1765363894757,-500.0,0.00016438,2]
[398091460,1765363894767,-500.0,0.00016438,2]
[398091461,1765363894776,-500.0,0.00016438,2]
[398091462,1765363894785,-500.0,0.00016438,2]
[398091463,1765363894794,-500.0,0.00016438,2]
[398091464,1765363894803,-500.0,0.00016438,2]
[398091465,1765363894812,-500.0,0.00016438,2]
[398091466,1765363894821,-500.0,0.00016438,2]
[398091467,1765363894830,-500.0,0.00016438,2]
[398091468,1765363894838,-500.0,0.00016438,2]
[398091469,1765363894847,-500.0,0.00016438,2]
[398091470,1765363894856,-500.0,0.00016438,2]
[398091471,1765363894865,-500.0,0.00016438,2]
[398091472,1765363894875,-238.68375647,0.00016438,2]
[398091473,1765363894884,-500.0,0.00016438,2]
[398091474,1765363894893,-500.0,0.00016438,2]
[398091475,1765363894902,-500.0,0.00016438,2]
[398091476,1765363894912,-947.85,0.00016438,2]
[398091477,1765363894921,-500.0,0.00016438,2]
[398091478,1765363894931,-500.0,0.00016438,2]
[398091479,1765363894940,-500.0,0.00016438,2]
[398091480,1765363894949,-500.0,0.00016438,2]
[398091481,1765363894958,-500.0,0.00016438,2]
[398091482,1765363894972,-500.0,0.00016438,2]
[398091483,1765363894981,-587.0,0.00016438,2]
[398091484,1765363894991,-500.0,0.00016438,2]
[398091485,1765363895000,-500.0,0.00016438,2]
[398091486,1765363895011,-500.0,0.00016438,2]
[398091487,1765363895020,-500.0,0.00016438,2]
[398091488,1765363895030,-500.0,0.00016438,2]
[398091489,1765363895039,-501.33,0.00016438,2]
[398091490,1765363895050,-500.0,0.00016438,2]
[398091491,1765363895060,-576.82,0.00016438,2]
[398091492,1765363895068,-500.0,0.00016438,2]
[398091493,1765363895080,-500.0,0.00016438,2]
[398091494,1765363895091,-500.0,0.00016438,2]
[398091495,1765363895101,-532.94,0.00016438,2]
[398091496,1765363895112,-526.76,0.00016438,2]
[398091497,1765363895122,-685.62,0.00016438,2]
[398091498,1765363895131,-500.0,0.00016438,2]
[398091499,1765363895140,-500.0,0.00016438,2]
[398091500,1765363895149,-778.96,0.00016438,2]
[398091501,1765363895159,-500.0,0.00016438,2]
[398091502,1765363895168,-500.0,0.00016438,2]
[398091503,1765363895177,-500.0,0.00016438,2]
[398091504,1765363895186,-594.25,0.00016438,2]
[398091505,1765363895195,-500.0,0.00016438,2]
[398091506,1765363895207,-695.24,0.00016438,2]
[398091507,1765363895216,-500.0,0.00016438,2]
[398091508,1765363895226,-417.49586531,0.00016438,2]
[398091509,1765363895236,-300.0,0.00016438,2]
[398091510,1765363895247,-300.0,0.00016438,2]
[398091511,1765363895256,-300.0,0.00016438,2]
[398091512,1765363895266,-300.0,0.00016438,2]
[398091513,1765363895275,-500.0,0.00016438,2]
[398091514,1765363895284,-300.0,0.00016438,2]
[398091515,1765363895294,-300.0,0.00016438,2]
[398091516,1765363895305,-300.0,0.00016438,2]
[398091517,1765363895314,-300.0,0.00016438,2]
[398091518,1765363895323,-300.0,0.00016438,2]
[398091519,1765363895331,-300.0,0.00016438,2]
[398091520,1765363895341,-300.0,0.00016438,2]
[398091521,1765363895351,-500.0,0.00016438,2]
[398091522,1765363895360,-571.54,0.00016438,2]
[398091523,1765363895370,-500.0,0.00016438,2]
[398091524,1765363895379,-500.0,0.00016438,2]
[398091525,1765363895388,-500.0,0.00016438,2]
[398091526,1765363895398,-500.0,0.00016438,2]
[398091527,1765363895407,-500.0,0.00016438,2]
[398091528,1765363895416,-537.71,0.00016438,2]
[398091529,1765363895425,-500.0,0.00016438,2]
[398091530,1765363895435,-500.0,0.00016438,2]
[398091531,1765363895444,-526.55,0.00016438,2]
[398091532,1765363895453,-622.54,0.00016438,2]
[398091533,1765363895463,-500.0,0.00016438,2]
[398091534,1765363895472,-500.0,0.00016438,2]
[398091535,1765363895482,-569.43,0.00016438,2]
[398091536,1765363895494,-500.0,0.00016438,2]
[398091537,1765363895503,-500.0,0.00016438,2]
[398091538,1765363895513,-614.97,0.00016438,2]
[398091539,1765363895522,-500.0,0.00016438,2]
[398091540,1765363895531,-268.04606967,0.00016438,2]
[398091541,1765363895542,-500.0,0.00016438,2]
[398091542,1765363895553,-500.0,0.00016438,2]
[398091543,1765363895563,-500.0,0.00016438,2]
[398091544,1765363895573,-611.19186034,0.00016438,2]
[398091545,1765363895582,-500.0,0.00016438,2]
[398091546,1765363895592,-500.0,0.00016438,2]
[398091547,1765363895602,-521.75,0.00016438,2]
[398091548,1765363895612,-691.35,0.00016438,2]
[398091549,1765363895622,-500.0,0.00016438,2]
[398091550,1765363895632,-500.0,0.00016438,2]
[398091551,1765363895642,-500.0,0.00016438,2]
[398091552,1765363895652,-831.61,0.00016438,2]
[398091553,1765363895661,-580.62,0.00016438,2]
[398091554,1765363895671,-607.34,0.00016438,2]
[398091555,1765363895680,-558.66,0.00016438,2]
[398091556,1765363895690,-500.0,0.00016438,2]
[398091557,1765363895699,-500.0,0.00016438,2]
[398091558,1765363895708,-500.0,0.00016438,2]
[398091559,1765363895717,-687.2,0.00016438,2]
[398091560,1765363895726,-281.17810393,0.00016438,2]
[398091561,1765363895736,-697.92,0.00016438,2]
[398091562,1765363895745,-663.24,0.00016438,2]
[398091563,1765363895754,-500.0,0.00016438,2]
[398091564,1765363895763,-500.0,0.00016438,2]
[398091565,1765363895774,-632.86,0.00016438,2]
[398091566,1765363895784,-341.85497968,0.00016438,2]
[398091567,1765363895794,-500.0,0.00016438,2]
[398091568,1765363895803,-516.81,0.00016438,2]
[398091569,1765363895814,-528.53,0.00016438,2]
[398091570,1765363895823,-500.0,0.00016438,2]
[398091571,1765363895833,-588.94,0.00016438,2]
[398091572,1765363895843,-575.19,0.00016438,2]
[398091573,1765363895852,-550.51,0.00016438,2]
[398091574,1765363895861,-520.64,0.00016438,2]
[398091575,1765363895871,-500.0,0.00016438,2]
[398091576,1765363895883,-1386.52,0.00016438,2]
[398091577,1765363895892,-500.0,0.00016438,2]
[398091578,1765363895901,-500.0,0.00016438,2]
[398091579,1765363895911,-626.72,0.00016438,2]
[398091580,1765363895920,-540.35,0.00016438,2]
[398091581,1765363895930,-500.0,0.00016438,2]
[398091582,1765363895941,-500.0,0.00016438,2]
[398091583,1765363895950,-500.0,0.00016438,2]
[398091584,1765363895959,-500.0,0.00016438,2]
[398091585,1765363895973,-500.0,0.00016438,2]
[398091586,1765363895982,-1096.94,0.00016438,2]
[398091587,1765363895991,-547.45,0.00016438,2]
[398091588,1765363896000,-1026.31,0.00016438,2]
[398091589,1765363896010,-500.0,0.00016438,2]
[398091590,1765363896019,-500.0,0.00016438,2]
[398091591,1765363896028,-500.0,0.00016438,2]
[398091592,1765363896040,-500.0,0.00016438,2]
[398091593,1765363896049,-500.0,0.00016438,2]
[398091594,1765363896060,-851.24,0.00016438,2]
[398091595,1765363896070,-504.48,0.00016438,2]
[398091596,1765363896080,-500.0,0.00016438,2]
[398091597,1765363896092,-500.0,0.00016438,2]
[398091598,1765363896103,-500.0,0.00016438,2]
[398091599,1765363896113,-500.0,0.00016438,2]
[398091600,1765363896123,-522.11,0.00016438,2]
[398091601,1765363896134,-500.0,0.00016438,2]
[398091602,1765363896143,-500.0,0.00016438,2]
[398091603,1765363896152,-610.27,0.00016438,2]
[398091604,1765363896161,-687.03,0.00016438,2]
[398091605,1765363896170,-423.24254473,0.00016438,2]
[398091606,1765363896179,-500.0,0.00016438,2]
[398091607,1765363896188,-479.19180647,0.00016438,2]
[398091608,1765363896197,-500.0,0.00016438,2]
[398091609,1765363896206,-500.0,0.00016438,2]
[398091610,1765363896215,-500.0,0.00016438,2]
[398091611,1765363896224,-659.53,0.00016438,2]
[398091612,1765363896233,-1423.99,0.00016438,2]
[398091613,1765363896242,-605.66,0.00016438,2]
[398091614,1765363896252,-500.0,0.00016438,2]
[398091615,1765363896261,-500.0,0.00016438,2]
[398091616,1765363896433,-535.23,0.00016438,2]
[398091617,1765363896442,-500.0,0.00016438,2]
[398091618,1765363896452,-500.0,0.00016438,2]
[398091619,1765363896461,-500.0,0.00016438,2]
[398091620,1765363896470,-943.64,0.00016438,2]
[398091621,1765363896479,-500.0,0.00016438,2]
[398091622,1765363896488,-605.73,0.00016438,2]
[398091623,1765363896497,-525.5755002,0.00016438,2]
[398091624,1765363896506,-694.43,0.00016438,2]
[398091625,1765363896514,-2000.0,0.00016438,2]
[398091626,1765363896523,-2000.0,0.00016438,2]
[398091627,1765363896532,-2000.0,0.00016438,2]
[398091628,1765363896546,-157.0,0.00016438,2]
[398091629,1765363896556,-2000.0,0.00016438,2]
[398091630,1765363896565,-2000.0,0.00016438,2]
[398091631,1765363896574,-2000.0,0.00016438,2]
[398091632,1765363896586,-2000.0,0.00016438,2]
[398091633,1765363896595,-2000.0,0.00016438,2]
[398091634,1765363896604,-2000.0,0.00016438,2]
[398091635,1765363896613,-2000.0,0.00016438,2]
[398091636,1765363896623,-2000.0,0.00016438,2]
[398091637,1765363896631,-534.57,0.00016438,2]
[398091638,1765363896644,-500.0,0.00016438,2]
[398091639,1765363896654,-637.14,0.00016438,2]
[398091640,1765363896664,-500.0,0.00016438,2]
[398091641,1765363896674,-150.0,0.00016438,2]
[398091642,1765363896683,-500.0,0.00016438,2]
[398091643,1765363896691,-500.0,0.00016438,2]
[398091644,1765363896701,-500.0,0.00016438,2]
[398091645,1765363896711,-500.0,0.00016438,2]
[398091646,1765363896721,-500.0,0.00016438,2]
[398091647,1765363896730,-1035.09,0.00016438,2]
[398091648,1765363896740,-500.0,0.00016438,2]
[398091649,1765363896750,-638.9,0.00016438,2]
[398091650,1765363896760,-575.75838264,0.00016438,2]
[398091651,1765363896770,-590.56,0.00016438,2]
[398091652,1765363896779,-500.0,0.00016438,2]
[398091653,1765363896789,-823.36,0.00016438,2]
[398091654,1765363896799,-500.0,0.00016438,2]
[398091655,1765363896808,-610.31,0.00016438,2]
[398091656,1765363896819,-500.0,0.00016438,2]
[398091657,1765363896828,-500.0,0.00016438,2]
[398091658,1765363896840,-375.85,0.00016438,2]
[398091659,1765363896849,-538.83228911,0.00016438,2]
[398091660,1765363896859,-500.0,0.00016438,2]
[398091661,1765363896869,-620.79,0.00016438,2]
[398091662,1765363896879,-888.67,0.00016438,2]
[398091663,1765363896889,-500.0,0.00016438,2]
[398091664,1765363896898,-500.0,0.00016438,2]
[398091665,1765363896908,-500.0,0.00016438,2]
[398091666,1765363896918,-601.0,0.00016438,2]
[398091667,1765363896927,-500.0,0.00016438,2]
[398091668,1765363896937,-500.0,0.00016438,2]
[398091669,1765363896947,-619.05,0.00016438,2]
[398091670,1765363896956,-500.0,0.00016438,2]
[398091671,1765363896966,-500.0,0.00016438,2]
[398091672,1765363896979,-718.66,0.00016438,2]
[398091673,1765363896988,-500.0,0.00016438,2]
[398091674,1765363896997,-575.76,0.00016438,2]
[398091675,1765363897008,-522.38,0.00016438,2]
[398091676,1765363897018,-500.0,0.00016438,2]
[398091677,1765363897033,-500.0,0.00016438,2]
[398091678,1765363897044,-369.17819659,0.00016438,2]
[398091679,1765363897055,-528.5,0.00016438,2]
[398091680,1765363897063,-500.0,0.00016438,2]
[398091681,1765363897072,-500.0,0.00016438,2]
[398091682,1765363897081,-500.0,0.00016438,2]
[398091683,1765363897090,-500.0,0.00016438,2]
[398091684,1765363897099,-500.0,0.00016438,2]
[398091685,1765363897108,-582.05,0.00016438,2]
[398091686,1765363897117,-500.0,0.00016438,2]
[398091687,1765363897127,-500.0,0.00016438,2]
[398091688,1765363897136,-1023.47,0.00016438,2]
[398091689,1765363897145,-500.0,0.00016438,2]
[398091690,1765363897154,-2989.18,0.00016438,2]
[398091691,1765363897163,-505.95673428,0.00016438,2]
[398091692,1765363897172,-500.0,0.00016438,2]
[398091693,1765363897182,-555.46,0.00016438,2]
[398091694,1765363897191,-500.0,0.00016438,2]
[398091695,1765363897201,-500.0,0.00016438,2]
[398091696,1765363897210,-1304.2,0.00016438,2]
[398091697,1765363897219,-729.87,0.00016438,2]
[398091698,1765363897229,-2869.58,0.00016438,2]
[398091699,1765363897238,-500.0,0.00016438,2]
[398091700,1765363897248,-500.0,0.00016438,2]
[398091701,1765363897257,-322.26605574,0.00016438,2]
[398091702,1765363897266,-500.0,0.00016438,2]
[398091703,1765363897276,-501.94,0.00016438,2]
[398091704,1765363897285,-500.0,0.00016438,2]
[398091705,1765363897294,-658.56,0.00016438,2]
[398091706,1765363897303,-500.0,0.00016438,2]
[398091707,1765363897312,-500.0,0.00016438,2]
[398091708,1765363897322,-500.0,0.00016438,2]
[398091709,1765363897331,-500.0,0.00016438,2]
[398091710,1765363897340,-548.02,0.00016438,2]
[398091711,1765363897349,-500.0,0.00016438,2]
[398091712,1765363897358,-500.0,0.00016438,2]
[398091713,1765363897367,-500.0,0.00016438,2]
[398091714,1765363897375,-500.0,0.00016438,2]
[398091715,1765363897384,-500.0,0.00016438,2]
[398091716,1765363897393,-500.0,0.00016438,2]
[398091717,1765363897402,-970.77,0.00016438,2]
[398091718,1765363897411,-500.0,0.00016438,2]
[398091719,1765363897420,-1025.9,0.00016438,2]
[398091720,1765363897429,-500.0,0.00016438,2]
[398091721,1765363897438,-540.25,0.00016438,2]
[398091722,1765363897446,-555.46,0.00016438,2]
[398091723,1765363897455,-500.0,0.00016438,2]
[398091724,1765363897464,-832.02,0.00016438,2]
[398091725,1765363897477,-500.0,0.00016438,2]
[398091726,1765363897486,-635.2,0.00016438,2]
[398091727,1765363897495,-500.0,0.00016438,2]
[398091728,1765363897504,-453.24796016,0.00016438,2]
[398091729,1765363897512,-504.31639925,0.00016438,2]
[398091730,1765363897521,-504.31639925,0.00016438,2]
[398091731,1765363897530,-504.31639925,0.00016438,2]
[398091732,1765363897539,-504.31639925,0.00016438,2]
[398091733,1765363897547,-504.31639925,0.00016438,2]
[398091734,1765363897556,-504.31639925,0.00016438,2]
[398091735,1765363897565,-504.31639925,0.00016438,2]
[398091736,1765363897574,-504.31639925,0.00016438,2]
[398091737,1765363897583,-504.31639925,0.00016438,2]
[398091738,1765363897592,-504.31639925,0.00016438,2]
[398091739,1765363897601,-504.31639925,0.00016438,2]
[398091740,1765363897610,-504.31639925,0.00016438,2]
[398091741,1765363897619,-504.31639925,0.00016438,2]
[398091742,1765363897628,-504.31639925,0.00016438,2]
[398091743,1765363897637,-504.31639925,0.00016438,2]
[398091744,1765363897646,-504.31639925,0.00016438,2]
[398091745,1765363897655,-504.31639925,0.00016438,2]
[398091746,1765363897664,-504.31639925,0.00016438,2]
[398091747,1765363897673,-504.31639925,0.00016438,2]
[398091748,1765363897681,-504.31639925,0.00016438,2]
[398091749,1765363897690,-504.31639925,0.00016438,2]
[398091750,1765363897699,-504.31639925,0.00016438,2]
[398091751,1765363897708,-504.31639925,0.00016438,2]
[398091752,1765363897716,-504.31639925,0.00016438,2]
[398091753,1765363897725,-504.31639925,0.00016438,2]
[398091754,1765363897733,-504.31639925,0.00016438,2]
[398091755,1765363897742,-504.31639925,0.00016438,2]
[398091756,1765363897751,-504.31639925,0.00016438,2]
[398091757,1765363897759,-504.31639925,0.00016438,2]
[398091758,1765363897768,-504.31639925,0.00016438,2]
[398091759,1765363897776,-504.31639925,0.00016438,2]
[398091760,1765363897785,-504.31639925,0.00016438,2]
[398091761,1765363897794,-504.31639925,0.00016438,2]
[398091762,1765363897803,-504.31639925,0.00016438,2]
[398091763,1765363897812,-504.31639925,0.00016438,2]
[398091764,1765363897821,-504.31639925,0.00016438,2]
[398091765,1765363897829,-504.31639925,0.00016438,2]
[398091766,1765363897838,-504.31639925,0.00016438,2]
[398091767,1765363897846,-504.31639925,0.00016438,2]
[398091768,1765363897855,-504.31639925,0.00016438,2]
[398091769,1765363897864,-504.31639925,0.00016438,2]
[398091770,1765363897874,-504.31639925,0.00016438,2]
[398091771,1765363897883,-504.31639925,0.00016438,2]
[398091772,1765363897895,-504.31639925,0.00016438,2]
[398091773,1765363897904,-515.11,0.00016438,2]
[398091774,1765363897914,-504.31639925,0.00016438,2]
[398091775,1765363897923,-504.31639925,0.00016438,2]
[398091776,1765363897933,-504.31639925,0.00016438,2]
[398091777,1765363897942,-504.31639925,0.00016438,2]
[398091778,1765363897952,-504.31639925,0.00016438,2]
[398091779,1765363897961,-504.31639925,0.00016438,2]
[398091780,1765363897973,-504.31639925,0.00016438,2]
[398091781,1765363897983,-504.31639925,0.00016438,2]
[398091782,1765363897992,-504.31639925,0.00016438,2]
[398091783,1765363898001,-504.31639925,0.00016438,2]
[398091784,1765363898012,-504.31639925,0.00016438,2]
[398091785,1765363898022,-504.31639925,0.00016438,2]
[398091786,1765363898031,-504.31639925,0.00016438,2]
[398091787,1765363898041,-504.31639925,0.00016438,2]
[398091788,1765363898052,-504.31639925,0.00016438,2]
[398091789,1765363898062,-504.31639925,0.00016438,2]
[398091790,1765363898071,-504.31639925,0.00016438,2]
[398091791,1765363898081,-504.31639925,0.00016438,2]
[398091792,1765363898090,-500.0,0.00016438,2]
[398091793,1765363898100,-504.31639925,0.00016438,2]
[398091794,1765363898109,-504.31639925,0.00016438,2]
[398091795,1765363898118,-504.31639925,0.00016438,2]
[398091796,1765363898127,-504.31639925,0.00016438,2]
[398091797,1765363898139,-504.31639925,0.00016438,2]